fUSD/lending_fUSD_20250629
["ID","MTS","AMOUNT","RATE_DAILY","PERIOD"]
[368389854,1751155865759,-151.0,0.00030136,7]
[368389855,1751155865769,-359.43025504,0.00030136,9]
[368389856,1751155865778,-151.0,0.00030136,7]
[368389857,1751155865787,-151.859141,0.00030136,7]
[368389858,1751155865797,-490.0,0.00030136,9]
[368389859,1751155865806,-490.72832612,0.00030136,9]
[368389860,1751155865815,-490.0,0.00030136,9]
[368389861,1751155865825,-490.0,0.00030136,9]
[368389862,1751155865834,-490.0,0.00030136,9]
[368389863,1751155865843,-490.0,0.00030136,9]
[368389864,1751155865853,-1643.6,0.00030136,9]
[368389865,1751155865863,-490.0,0.00030136,9]
[368389866,1751155865872,-490.0,0.00030136,9]
[368389867,1751155865881,-2045.98,0.00030136,9]
[368389868,1751155865891,-490.0,0.00030136,9]
[368389869,1751155865900,-490.0,0.00030136,9]
[368389870,1751155865910,-490.0,0.00030136,9]
[368389871,1751155865919,-490.0,0.00030136,9]
[368389872,1751155865928,-490.0,0.00030136,9]
[368389873,1751155865937,-490.0,0.00030136,9]
[368389874,1751155865946,-1294.12,0.00030136,9]
[368389875,1751155865956,-490.0,0.00030136,9]
[368389876,1751155865965,-1543.45,0.00030136,9]
[368389877,1751155865974,-490.0,0.00030136,9]
[368389878,1751155865983,-1224.52,0.00030136,9]
[368389879,1751155865993,-490.0,0.00030136,9]
[368389880,1751155866003,-490.0,0.00030136,9]
[368389881,1751155866013,-490.0,0.00030136,9]
[368389882,1751155866022,-490.0,0.00030136,9]
[368389883,1751155866032,-164.27420365,0.00030136,9]
[368389884,1751155866041,-981.47,0.00030136,9]
[368389885,1751155866050,-1412.14,0.00030136,9]
[368389886,1751155866061,-490.0,0.00030136,9]
[368389887,1751155866071,-490.0,0.00030136,9]
[368389888,1751155866080,-490.0,0.00030136,9]
[368389889,1751155866090,-490.0,0.00030136,9]
[368389890,1751155866099,-490.0,0.00030136,9]
[368389891,1751155866108,-1585.77,0.00030136,9]
[368389892,1751155866118,-490.0,0.00030136,9]
[368389893,1751155866127,-618.11,0.00030136,9]
[368389894,1751155866136,-490.0,0.00030136,9]
[368389895,1751155866146,-490.0,0.00030136,9]
[368389896,1751155866156,-167.676235,0.00030136,9]
[368389897,1751155866166,-492.11423294,0.00030136,9]
[368389898,1751155866175,-490.78,0.00030136,9]
[368389899,1751155866184,-490.0,0.00030136,9]
[368389900,1751155866194,-490.0,0.00030136,9]
[368389901,1751155866203,-490.0,0.00030136,9]
[368389902,1751155866212,-490.0,0.00030136,9]
[368389903,1751155866221,-2769.83,0.00030136,9]
[368389904,1751155866230,-490.0,0.00030136,9]
[368389905,1751155866240,-151.0,0.00030136,7]
[368389906,1751155866249,-490.0,0.00030136,9]
[368389907,1751155866258,-151.0,0.00030136,7]
[368389908,1751155866267,-151.0,0.00030136,7]
[368389909,1751155866277,-490.0,0.00030136,9]
[368389910,1751155866286,-490.0,0.00030136,9]
[368389911,1751155866296,-151.0,0.00030136,7]
[368389912,1751155866305,-490.0,0.00030136,9]
[368389913,1751155866315,-151.0,0.00030136,7]
[368389914,1751155866325,-490.0,0.00030136,9]
[368389915,1751155866334,-151.0,0.00030136,7]
[368389916,1751155866345,-1833.76,0.00030136,9]
[368389917,1751155866355,-490.0,0.00030136,9]
[368389918,1751155866365,-490.0,0.00030136,9]
[368389919,1751155866375,-151.0,0.00030136,7]
[368389920,1751155866384,-490.0,0.00030136,9]
[368389921,1751155866393,-151.0,0.00030136,7]
[368389922,1751155866403,-900.42,0.00030136,9]
[368389923,1751155866412,-151.0,0.00030136,7]
[368389924,1751155866421,-490.0,0.00030136,9]
[368389925,1751155866431,-490.0,0.00030136,9]
[368389926,1751155866440,-490.0,0.00030136,9]
[368389927,1751155866449,-151.0,0.00030136,7]
[368389928,1751155866459,-151.0,0.00030136,7]
[368389929,1751155866468,-151.0,0.00030136,7]
[368389930,1751155866480,-490.0,0.00030136,9]
[368389931,1751155866490,-1319.25,0.00030136,9]
[368389932,1751155866500,-492.29,0.00030136,9]
[368389933,1751155866510,-490.0,0.00030136,9]
[368389934,1751155866520,-674.99,0.00030136,9]
[368389935,1751155866529,-490.0,0.00030136,9]
[368389936,1751155866539,-490.0,0.00030136,9]
[368389937,1751155866550,-1136.23,0.00030136,9]
[368389938,1751155866560,-490.0,0.00030136,9]
[368389939,1751155866571,-495.68,0.00030136,9]
[368389940,1751155866581,-490.0,0.00030136,9]
[368389941,1751155866591,-490.0,0.00030136,9]
[368389942,1751155866601,-490.0,0.00030136,9]
[368389943,1751155866610,-7105.69,0.00030136,9]
[368389944,1751155866620,-1412.93,0.00030136,9]
[368389945,1751155866630,-490.0,0.00030136,9]
[368389946,1751155866640,-3248.96,0.00030136,9]
[368389947,1751155866649,-490.0,0.00030136,9]
[368389948,1751155866659,-807.714195,0.00030136,7]
[368389949,1751155866670,-1441.03,0.00030136,9]
[368389950,1751155866680,-490.0,0.00030136,9]
[368389951,1751155866689,-490.0,0.00030136,9]
[368389952,1751155866700,-807.714195,0.00030136,7]
[368389953,1751155866713,-490.0,0.00030136,9]
[368389954,1751155866724,-807.714195,0.00030136,7]
[368389955,1751155866735,-490.0,0.00030136,9]
[368389956,1751155866745,-807.714195,0.00030136,7]
[368389957,1751155866756,-807.714195,0.00030136,7]
[368389958,1751155866767,-807.714195,0.00030136,7]
[368389959,1751155866776,-490.0,0.00030136,9]
[368389960,1751155866786,-490.0,0.00030136,9]
[368389961,1751155866798,-807.714195,0.00030136,7]
[368389962,1751155866808,-490.0,0.00030136,9]
[368389963,1751155866817,-807.714195,0.00030136,7]
[368389964,1751155866827,-807.714195,0.00030136,7]
[368389965,1751155866837,-490.0,0.00030136,9]
[368389966,1751155866847,-490.0,0.00030136,9]
[368389967,1751155866856,-490.0,0.00030136,9]
[368389968,1751155866866,-490.0,0.00030136,9]
[368389969,1751155866876,-807.714195,0.00030136,7]
[368389970,1751155866886,-490.0,0.00030136,9]
[368389971,1751155866896,-807.714195,0.00030136,7]
[368389972,1751155866905,-490.0,0.00030136,9]
[368389973,1751155866916,-807.714195,0.00030136,7]
[368389974,1751155866925,-490.0,0.00030136,9]
[368389975,1751155866935,-276.06827036,0.00030136,9]
[368389976,1751155866946,-807.714195,0.00030136,7]
[368389977,1751155866955,-807.714195,0.00030136,7]
[368389978,1751155866965,-490.0,0.00030136,9]
[368389979,1751155866975,-490.0,0.00030136,9]
[368389980,1751155866986,-807.714195,0.00030136,7]
[368389981,1751155866995,-490.0,0.00030136,9]
[368389982,1751155867005,-807.714195,0.00030136,7]
[368389983,1751155867016,-490.0,0.00030136,9]
[368389984,1751155867026,-748.7,0.00030136,7]
[368389985,1751155867036,-10531.17,0.00030136,9]
[368389986,1751155867046,-807.714195,0.00030136,7]
[368389987,1751155867057,-842.78,0.00030136,9]
[368389988,1751155867067,-490.0,0.00030136,9]
[368389989,1751155867077,-807.714203,0.00030136,7]
[368389990,1751155867087,-490.0,0.00030136,9]
[368389991,1751155867097,-490.01,0.00030136,9]
[368389992,1751155867107,-490.0,0.00030136,9]
[368389993,1751155867117,-524.78,0.00030136,9]
[368389994,1751155867127,-524.78,0.00030136,9]
[368389995,1751155867137,-524.78,0.00030136,9]
[368389996,1751155867147,-524.78,0.00030136,9]
[368389997,1751155867156,-490.0,0.00030136,9]
[368389998,1751155867166,-524.78,0.00030136,9]
[368389999,1751155867175,-524.78,0.00030136,9]
[368390000,1751155867186,-524.78,0.00030136,9]
[368390001,1751155867195,-490.0,0.00030136,9]
[368390002,1751155867205,-524.78,0.00030136,9]
[368390003,1751155867215,-490.0,0.00030136,9]
[368390004,1751155867225,-524.78,0.00030136,9]
[368390005,1751155867234,-524.78,0.00030136,9]
[368390006,1751155867244,-524.78,0.00030136,9]
[368390007,1751155867254,-490.0,0.00030136,9]
[368390008,1751155867264,-524.78,0.00030136,9]
[368390009,1751155867273,-3844.88,0.00030136,9]
[368390010,1751155867284,-524.78,0.00030136,9]
[368390011,1751155867294,-490.0,0.00030136,9]
[368390012,1751155867304,-673.04,0.00030136,9]
[368390013,1751155867314,-490.99723434,0.00030136,9]
[368390014,1751155867323,-491.40085242,0.00030136,9]
[368390015,1751155867333,-490.0,0.00030136,9]
[368390016,1751155867342,-510.63,0.00030136,9]
[368390017,1751155867352,-490.0,0.00030136,9]
[368390018,1751155867362,-490.0,0.00030136,9]
[368390019,1751155867372,-490.0,0.00030136,9]
[368390020,1751155867381,-681.34,0.00030136,9]
[368390021,1751155867391,-2514.11,0.00030136,9]
[368390022,1751155867400,-490.0,0.00030136,9]
[368390023,1751155867409,-1494.3,0.00030136,9]
[368390024,1751155867419,-490.0,0.00030136,9]
[368390025,1751155867429,-490.0,0.00030136,9]
[368390026,1751155867439,-490.0,0.00030136,9]
[368390027,1751155867448,-503.0166249,0.00030136,9]
[368390028,1751155867458,-1724.87,0.00030136,9]
[368390029,1751155867468,-490.0,0.00030136,9]
[368390030,1751155867477,-490.0,0.00030136,9]
[368390031,1751155867488,-490.0,0.00030136,9]
[368390032,1751155867497,-490.0,0.00030136,9]
[368390033,1751155867507,-5211.43,0.00030136,9]
[368390034,1751155867517,-1890.4,0.00030136,9]
[368390035,1751155867527,-490.0,0.00030136,9]
[368390036,1751155867537,-490.0,0.00030136,9]
[368390037,1751155867546,-490.0,0.00030136,9]
[368390038,1751155867555,-490.0,0.00030136,9]
[368390039,1751155867565,-490.0,0.00030136,9]
[368390040,1751155867575,-490.0,0.00030136,9]
[368390041,1751155867584,-490.0,0.00030136,9]
[368390042,1751155867594,-490.0,0.00030136,9]
[368390043,1751155867604,-490.0,0.00030136,9]
[368390044,1751155867614,-490.0,0.00030136,9]
[368390045,1751155867624,-490.0,0.00030136,9]
[368390046,1751155867633,-490.0,0.00030136,9]
[368390047,1751155867646,-490.0,0.00030136,9]
[368390048,1751155867656,-490.0,0.00030136,9]
[368390049,1751155867665,-1004.72,0.00030136,9]
[368390050,1751155867675,-490.0,0.00030136,9]
[368390051,1751155867684,-546.06,0.00030136,9]
[368390052,1751155867694,-490.0,0.00030136,9]
[368390053,1751155867704,-490.0,0.00030136,9]
[368390054,1751155867718,-199.34519328,0.00030136,9]
[368390055,1751155867728,-490.0,0.00030136,9]
[368390056,1751155867738,-490.0,0.00030136,9]
[368390057,1751155867748,-151.0,0.00030136,7]
[368390058,1751155867757,-152.818078,0.00030136,7]
[368390059,1751155867767,-2548.38,0.00030136,9]
[368390060,1751155867777,-490.0,0.00030136,9]
[368390061,1751155867786,-490.0,0.00030136,9]
[368390062,1751155867796,-490.0,0.00030136,9]
[368390063,1751155867805,-490.0,0.00030136,9]
[368390064,1751155867815,-490.0,0.00030136,9]
[368390065,1751155867824,-3693.95,0.00030136,9]
[368390066,1751155867834,-490.0,0.00030136,9]
[368390067,1751155867843,-490.0,0.00030136,9]
[368390068,1751155867853,-3463.72,0.00030136,9]
[368390069,1751155867863,-490.0,0.00030136,9]
[368390070,1751155867872,-490.0,0.00030136,9]
[368390071,1751155867882,-490.0,0.00030136,9]
[368390072,1751155867892,-490.0,0.00030136,9]
[368390073,1751155867901,-490.0,0.00030136,9]
[368390074,1751155867911,-1076.79,0.00030136,9]
[368390075,1751155867921,-696.34,0.00030136,9]
[368390076,1751155867932,-490.0,0.00030136,9]
[368390077,1751155867942,-490.0,0.00030136,9]
[368390078,1751155867952,-490.0,0.00030136,9]
[368390079,1751155867962,-490.0,0.00030136,9]
[368390080,1751155867972,-1580.74,0.00030136,9]
[368390081,1751155867982,-490.0,0.00030136,9]
[368390082,1751155867991,-490.0,0.00030136,9]
[368390083,1751155868001,-490.0,0.00030136,9]
[368390084,1751155868011,-490.55072861,0.00030136,9]
[368390085,1751155868021,-2053.81932436,0.00030136,30]
[368390086,1751155868031,-921.73,0.00030136,9]
[368390087,1751155868041,-490.0,0.00030136,9]
[368390088,1751155868051,-463.64585166,0.00030136,9]
[368390089,1751155868061,-490.0,0.00030136,9]
[368390090,1751155868071,-1763.56,0.00030136,9]
[368390091,1751155868081,-490.0,0.00030136,9]
[368390092,1751155868092,-490.0,0.00030136,9]
[368390093,1751155868101,-490.0,0.00030136,9]
[368390094,1751155868112,-490.0,0.00030136,9]
[368390095,1751155868123,-490.0,0.00030136,9]
[368390096,1751155868133,-1384.37,0.00030136,9]
[368390097,1751155868142,-491.36357495,0.00030136,9]
[368390098,1751155868152,-3097.51,0.00030136,9]
[368390099,1751155868162,-2779.46,0.00030136,9]
[368390100,1751155868171,-2132.24,0.00030136,9]
[368390101,1751155868181,-1194.61,0.00030136,9]
[368390102,1751155868190,-1635.54,0.00030136,9]
[368390103,1751155868200,-490.0,0.00030136,9]
[368390104,1751155868210,-490.0,0.00030136,9]
[368390105,1751155868220,-490.0,0.00030136,9]
[368390106,1751155868230,-2999.37,0.00030136,9]
[368390107,1751155868239,-490.0,0.00030136,7]
[368390108,1751155868249,-490.0,0.00030136,9]
[368390109,1751155868260,-490.0,0.00030136,9]
[368390110,1751155868270,-1843.76,0.00030136,9]
[368390111,1751155868280,-185.4507531,0.00030136,9]
[368390112,1751155868290,-1114.59,0.00030136,9]
[368390113,1751155868299,-1270.2,0.00030136,9]
[368390114,1751155868309,-2515.85,0.00030136,9]
[368390115,1751155868319,-490.0,0.00030136,9]
[368390116,1751155868328,-3050.1,0.00030136,9]
[368390117,1751155868338,-992.99,0.00030136,9]
[368390118,1751155868348,-499.72,0.00030136,9]
[368390119,1751155868357,-490.0,0.00030136,9]
[368390120,1751155868367,-1689.18,0.00030136,9]
[368390121,1751155868377,-490.0,0.00030136,9]
[368390122,1751155868387,-4836.15,0.00030136,9]
[368390123,1751155868396,-7149.11,0.00030136,9]
[368390124,1751155868406,-2457.57,0.00030136,9]
[368390125,1751155868416,-490.0,0.00030136,9]
[368390126,1751155868426,-490.0,0.00030136,9]
[368390127,1751155868435,-490.0,0.00030136,9]
[368390128,1751155868445,-500.0,0.00030136,9]
[368390129,1751155868455,-500.0,0.00030136,9]
[368390130,1751155868465,-500.0,0.00030136,9]
[368390131,1751155868474,-500.0,0.00030136,9]
[368390132,1751155868484,-500.0,0.00030136,9]
[368390133,1751155868494,-1364.71,0.00030136,9]
[368390134,1751155868503,-500.0,0.00030136,9]
[368390135,1751155868513,-500.0,0.00030136,9]
[368390136,1751155868523,-490.0,0.00030136,9]
[368390137,1751155868532,-500.0,0.00030136,9]
[368390138,1751155868543,-500.0,0.00030136,9]
[368390139,1751155868556,-2465.64,0.00030136,9]
[368390140,1751155868566,-500.0,0.00030136,9]
[368390141,1751155868575,-500.0,0.00030136,9]
[368390142,1751155868585,-500.0,0.00030136,9]
[368390143,1751155868595,-500.0,0.00030136,9]
[368390144,1751155868605,-763.55,0.00030136,9]
[368390145,1751155868616,-490.0,0.00030136,9]
[368390146,1751155868625,-890.01,0.00030136,9]
[368390147,1751155868635,-490.0,0.00030136,9]
[368390148,1751155868646,-490.0,0.00030136,9]
[368390149,1751155868656,-490.0,0.00030136,9]
[368390150,1751155868667,-490.0,0.00030136,9]
[368390151,1751155868678,-490.0,0.00030136,9]
[368390152,1751155868689,-570.27,0.00030136,9]
[368390153,1751155868914,-1331.65,0.00030136,9]
[368390154,1751155868944,-750.37,0.00030136,9]
[368390155,1751155868954,-2735.12,0.00030136,9]
[368390156,1751155868964,-551.9,0.00030136,7]
[368390157,1751155868974,-2022.78,0.00030136,9]
[368390158,1751155868983,-490.0,0.00030136,9]
[368390159,1751155868993,-490.0,0.00030136,9]
[368390160,1751155869003,-502.71,0.00030136,9]
[368390161,1751155869013,-1255.71,0.00030136,9]
[368390162,1751155869022,-1998.85,0.00030136,9]
[368390163,1751155869032,-1998.85,0.00030136,9]
[368390164,1751155869042,-1998.85,0.00030136,9]
[368390165,1751155869051,-490.0,0.00030136,9]
[368390166,1751155869061,-1998.85,0.00030136,9]
[368390167,1751155869071,-1303.12,0.00030136,9]
[368390168,1751155869081,-1998.85,0.00030136,9]
[368390169,1751155869090,-1998.85,0.00030136,9]
[368390170,1751155869100,-522.508388,0.00030136,7]
[368390171,1751155869109,-1998.85,0.00030136,9]
[368390172,1751155869118,-522.508388,0.00030136,7]
[368390173,1751155869128,-1998.85,0.00030136,9]
[368390174,1751155869138,-426.932236,0.00030136,9]
[368390175,1751155869148,-522.508388,0.00030136,7]
[368390176,1751155869157,-1998.85,0.00030136,9]
[368390177,1751155869167,-490.0,0.00030136,9]
[368390178,1751155869176,-1998.85,0.00030136,9]
[368390179,1751155869185,-522.508388,0.00030136,7]
[368390180,1751155869195,-1998.85,0.00030136,9]
[368390181,1751155869204,-1998.85,0.00030136,9]
[368390182,1751155869214,-522.508388,0.00030136,7]
[368390183,1751155869224,-1998.85,0.00030136,9]
[368390184,1751155869233,-522.508388,0.00030136,7]
[368390185,1751155869243,-522.508388,0.00030136,7]
[368390186,1751155869252,-490.0,0.00030136,9]
[368390187,1751155869262,-516.66439129,0.00030136,9]
[368390188,1751155869272,-1998.85,0.00030136,9]
[368390189,1751155869282,-490.0,0.00030136,9]
[368390190,1751155869292,-622.13,0.00030136,9]
[368390191,1751155869301,-522.508388,0.00030136,7]
[368390192,1751155869310,-490.0,0.00030136,9]
[368390193,1751155869320,-641.82,0.00030136,9]
[368390194,1751155869329,-522.508388,0.00030136,7]
[368390195,1751155869338,-490.0,0.00030136,9]
[368390196,1751155869348,-5747.77,0.00030136,9]
[368390197,1751155869357,-522.508388,0.00030136,7]
[368390198,1751155869367,-1086.14,0.00030136,9]
[368390199,1751155869376,-522.508388,0.00030136,7]
[368390200,1751155869386,-612.93,0.00030136,9]
[368390201,1751155869395,-522.508388,0.00030136,7]
[368390202,1751155869404,-490.0,0.00030136,9]
[368390203,1751155869414,-522.508388,0.00030136,7]
[368390204,1751155869423,-522.508388,0.00030136,7]
[368390205,1751155869433,-522.508388,0.00030136,7]
[368390206,1751155869442,-490.0,0.00030136,9]
[368390207,1751155869451,-490.0,0.00030136,9]
[368390208,1751155869461,-522.508388,0.00030136,7]
[368390209,1751155869472,-151.0,0.00030136,7]
[368390210,1751155869481,-522.508388,0.00030136,7]
[368390211,1751155869491,-3748.3,0.00030136,9]
[368390212,1751155869500,-151.0,0.00030136,7]
[368390213,1751155869509,-522.508383,0.00030136,7]
[368390214,1751155869518,-708.47,0.00030136,9]
[368390215,1751155869528,-490.0,0.00030136,9]
[368390216,1751155869538,-151.0,0.00030136,7]
[368390217,1751155869548,-1272.27,0.00030136,9]
[368390218,1751155869557,-151.0,0.00030136,7]
[368390219,1751155869566,-151.0,0.00030136,7]
[368390220,1751155869576,-151.0,0.00030136,7]
[368390221,1751155869585,-151.0,0.00030136,7]
[368390222,1751155869594,-151.0,0.00030136,7]
[368390223,1751155869604,-154.582662,0.00030136,7]
[368390224,1751155869613,-151.0,0.00030136,7]
[368390225,1751155869622,-151.0,0.00030136,7]
[368390226,1751155869632,-607.24,0.00030136,9]
[368390227,1751155869641,-151.0,0.00030136,7]
[368390228,1751155869650,-151.0,0.00030136,7]
[368390229,1751155869660,-151.0,0.00030136,7]
[368390230,1751155869669,-151.0,0.00030136,7]
[368390231,1751155869678,-281.290476,0.00030136,7]
[368390232,1751155869687,-151.0,0.00030136,7]
[368390233,1751155869696,-151.0,0.00030136,7]
[368390234,1751155869705,-281.290476,0.00030136,7]
[368390235,1751155869719,-20150.07,0.00030136,9]
[368390236,1751155869729,-151.0,0.00030136,7]
[368390237,1751155869738,-2475.61,0.00030136,9]
[368390238,1751155869747,-151.0,0.00030136,7]
[368390239,1751155869756,-281.290476,0.00030136,7]
[368390240,1751155869767,-151.0,0.00030136,7]
[368390241,1751155869776,-281.290476,0.00030136,7]
[368390242,1751155869785,-151.0,0.00030136,7]
[368390243,1751155869794,-490.0,0.00030136,9]
[368390244,1751155869804,-281.290476,0.00030136,7]
[368390245,1751155869813,-490.0,0.00030136,9]
[368390246,1751155869822,-490.0,0.00030136,9]
[368390247,1751155869831,-151.0,0.00030136,7]
[368390248,1751155869840,-281.290476,0.00030136,7]
[368390249,1751155869850,-171.362756,0.00030136,7]
[368390250,1751155869859,-281.290476,0.00030136,7]
[368390251,1751155869868,-281.290476,0.00030136,7]
[368390252,1751155869878,-281.290476,0.00030136,7]
[368390253,1751155869888,-490.0,0.00030136,9]
[368390254,1751155869897,-10689.86,0.00030136,9]
[368390255,1751155869907,-490.0,0.00030136,9]
[368390256,1751155869916,-490.0,0.00030136,9]
[368390257,1751155869926,-281.290476,0.00030136,7]
[368390258,1751155869935,-281.290476,0.00030136,7]
[368390259,1751155869944,-1267.86,0.00030136,9]
[368390260,1751155869953,-281.290476,0.00030136,7]
[368390261,1751155869963,-281.290476,0.00030136,7]
[368390262,1751155869973,-281.290476,0.00030136,7]
[368390263,1751155869982,-823.14,0.00030136,9]
[368390264,1751155869991,-281.290476,0.00030136,7]
[368390265,1751155870000,-1260.87,0.00030136,9]
[368390266,1751155870010,-490.0,0.00030136,9]
[368390267,1751155870020,-281.290476,0.00030136,7]
[368390268,1751155870029,-490.0,0.00030136,9]
[368390269,1751155870039,-281.290476,0.00030136,7]
[368390270,1751155870048,-14991.89,0.00030136,9]
[368390271,1751155870057,-281.29048,0.00030136,7]
[368390272,1751155870067,-707.84,0.00030136,9]
[368390273,1751155870076,-490.0,0.00030136,9]
[368390274,1751155870085,-6653.38,0.00030136,9]
[368390275,1751155870095,-490.0,0.00030136,9]
[368390276,1751155870104,-1439.83,0.00030136,9]
[368390277,1751155870114,-490.0,0.00030136,9]
[368390278,1751155870125,-689.829942,0.00030136,9]
[368390279,1751155870134,-1139.00085,0.00030136,9]
[368390280,1751155870144,-490.0,0.00030136,9]
[368390281,1751155870153,-1293.03,0.00030136,9]
[368390282,1751155870163,-490.0,0.00030136,9]
[368390283,1751155870172,-1761.08,0.00030136,9]
[368390284,1751155870182,-4428.77,0.00030136,9]
[368390285,1751155870191,-1838.69,0.00030136,9]
[368390286,1751155870200,-585.99,0.00030136,9]
[368390287,1751155870210,-1537.08,0.00030136,9]
[368390288,1751155870219,-490.0,0.00030136,9]
[368390289,1751155870229,-490.0,0.00030136,9]
[368390290,1751155870238,-1299.67,0.00030136,9]
[368390291,1751155870248,-490.0,0.00030136,9]
[368390292,1751155870257,-542.3,0.00030136,9]
[368390293,1751155870267,-490.0,0.00030136,9]
[368390294,1751155870276,-490.0,0.00030136,9]
[368390295,1751155870285,-6901.43,0.00030136,9]
[368390296,1751155870295,-513.75,0.00030136,9]
[368390297,1751155870304,-490.0,0.00030136,9]
[368390298,1751155870314,-2623.8,0.00030136,9]
[368390299,1751155870323,-918.75,0.00030136,9]
[368390300,1751155870332,-151.0,0.00030136,7]
[368390301,1751155870341,-633.01,0.00030136,9]
[368390302,1751155870350,-151.0,0.00030136,7]
[368390303,1751155870360,-664.02,0.00030136,9]
[368390304,1751155870369,-151.0,0.00030136,7]
[368390305,1751155870378,-491.85688882,0.00030136,9]
[368390306,1751155870387,-151.0,0.00030136,7]
[368390307,1751155870396,-1221.78,0.00030136,9]
[368390308,1751155870406,-151.0,0.00030136,7]
[368390309,1751155870415,-490.0,0.00030136,9]
[368390310,1751155870424,-151.0,0.00030136,7]
[368390311,1751155870433,-490.0,0.00030136,9]
[368390312,1751155870442,-151.0,0.00030136,7]
[368390313,1751155870451,-490.0,0.00030136,9]
[368390314,1751155870460,-490.0,0.00030136,9]
[368390315,1751155870470,-151.0,0.00030136,7]
[368390316,1751155870479,-2179.05,0.00030136,9]
[368390317,1751155870488,-490.0,0.00030136,9]
[368390318,1751155870497,-2112.11,0.00030136,9]
[368390319,1751155870506,-1959.2,0.00030136,9]
[368390320,1751155870516,-1163.5,0.00030136,9]
[368390321,1751155870525,-151.0,0.00030136,7]
[368390322,1751155870535,-997.73,0.00030136,9]
[368390323,1751155870544,-1505.58,0.00030136,9]
[368390324,1751155870553,-490.0,0.00030136,9]
[368390325,1751155870562,-2535.1,0.00030136,9]
[368390326,1751155870571,-490.0,0.00030136,9]
[368390327,1751155870580,-152.736446,0.00030136,7]
[368390328,1751155870589,-1546.67,0.00030136,9]
[368390329,1751155870599,-1888.86,0.00030136,9]
[368390330,1751155870607,-6216.57,0.00030136,9]
[368390331,1751155870616,-490.0,0.00030136,9]
[368390332,1751155870625,-1093.77,0.00030136,9]
[368390333,1751155870634,-995.517172,0.00030136,9]
[368390334,1751155870643,-206.162097,0.00030136,7]
[368390335,1751155870652,-490.0,0.00030136,9]
[368390336,1751155870661,-490.0,0.00030136,9]
[368390337,1751155870671,-1719.91,0.00030136,9]
[368390338,1751155870680,-887.488884,0.00030136,9]
[368390339,1751155870689,-1851.85,0.00030136,9]
[368390340,1751155870698,-156.13814339,0.00030136,9]
[368390341,1751155870707,-595.53,0.00030136,9]
[368390342,1751155870719,-490.0,0.00030136,9]
[368390343,1751155870728,-490.0,0.00030136,9]
[368390344,1751155870737,-1982.41,0.00030136,9]
[368390345,1751155870746,-1240.78,0.00030136,9]
[368390346,1751155870756,-1388.02,0.00030136,9]
[368390347,1751155870778,-490.0,0.00030136,2]
[368390348,1751155870791,-490.0,0.00030136,9]
[368390349,1751155870801,-852.24,0.00030136,9]
[368390350,1751155870810,-1496.68,0.00030136,9]
[368390351,1751155870819,-1468.16,0.00030136,9]
[368390352,1751155870828,-2383.63,0.00030136,9]
[368390353,1751155870838,-1850.71,0.00030136,9]